fUSD/lending_fUSD_20260509
["ID","MTS","AMOUNT","RATE_DAILY","PERIOD"]
[421893731,1778303448000,-7710.83,0.00019306,30]
[421893723,1778303448000,-394.18,0.00019283,2]
[421893726,1778303448000,-7710.83,0.00019295,7]
[421893712,1778303448000,-393.95,0.0001926,7]
[421893763,1778303448000,-214.73073128,0.000194,30]
[421893739,1778303448000,-393.95,0.0001933,7]
[421893761,1778303448000,-394.18,0.00019388,2]
[421893791,1778303448000,-1309.82700509,0.0002,2]
[421893794,1778303448000,-26736.11897026,0.0002,2]
[421893793,1778303448000,-25883.39790276,0.0002,2]
[421893804,1778303448000,-1099.57,0.0002,2]
[421893797,1778303448000,-1145.0,0.0002,2]
[421893805,1778303448000,-2374.0,0.0002,2]
[421893796,1778303448000,-152.0,0.0002,2]
[421893806,1778303448000,-297.0,0.0002,2]
[421893803,1778303448000,-463.0,0.0002,2]
[421893807,1778303448000,-427.0,0.0002,2]
[421893808,1778303448000,-835.0,0.0002,2]
[421893800,1778303448000,-150.0,0.0002,2]
[421893802,1778303448000,-165.0,0.0002,2]
[421893798,1778303448000,-1998.0,0.0002,2]
[421893801,1778303448000,-258.0,0.0002,2]
[421893817,1778303448000,-1000.0,0.0002,7]
[421893818,1778303448000,-200.0,0.0002,2]
[421893810,1778303448000,-200.0,0.0002,2]
[421893819,1778303448000,-900.0,0.00020082,7]
[421893820,1778303448000,-162.12,0.000201,14]
[421893816,1778303448000,-400.0,0.0002,2]
[421893809,1778303448000,-214.73073128,0.0002,30]
[421893811,1778303448000,-369.59,0.0002,2]
[421893813,1778303448000,-1828.0,0.0002,2]
[421893815,1778303448000,-854.0,0.0002,2]
[421893814,1778303448000,-214.73073128,0.0002,7]
[421893770,1778303448000,-597.0,0.00019545,4]
[421893790,1778303448000,-3950.0,0.0002,2]
[421893792,1778303448000,-7070.15770713,0.0002,2]
[421893799,1778303448000,-1000.0,0.0002,7]
[421893788,1778303448000,-178.52834082,0.0002,2]
[421893789,1778303448000,-1228.08,0.0002,2]
[421893759,1778303448000,-393.95,0.00019388,2]
[421893767,1778303448000,-7710.81,0.000194,7]
[421893769,1778303448000,-214.73073128,0.000195,7]
[421893766,1778303448000,-394.2,0.000194,7]
[421893765,1778303448000,-7710.91,0.000194,7]
[421893762,1778303448000,-7710.81,0.00019388,2]
[421893764,1778303448000,-394.08,0.000194,7]
[421893772,1778303448000,-2000.0,0.00019656,2]
[421893783,1778303448000,-616.17901578,0.00019868,2]
[421893782,1778303448000,-151.0,0.00019833,2]
[421893774,1778303448000,-339.14306719,0.00019702,2]
[421893773,1778303448000,-2000.0,0.00019656,2]
[421893771,1778303448000,-184.0,0.00019546,3]
[421893768,1778303448000,-214.73073128,0.000195,30]
[421893784,1778303448000,-286.4243907,0.000199,2]
[421893776,1778303448000,-560.8239117,0.00019753,2]
[421893785,1778303448000,-187546.76916638,0.0001995,15]
[421893795,1778303448000,-1057.19744667,0.0002,2]
[421893786,1778303448000,-1555.06,0.00019968,2]
[421893812,1778303448000,-76343.44958066,0.0002,2]
[421893781,1778303448000,-151.0,0.0001983,2]
[421893787,1778303448000,-1551.51945936,0.0002,2]
[421893778,1778303448000,-529.41674492,0.00019818,2]
[421893779,1778303448000,-155.84,0.0001983,2]
[421893777,1778303448000,-163.0,0.00019763,2]
[421893775,1778303448000,-10000.0,0.0001975,2]
[421893780,1778303448000,-151.0,0.0001983,2]
[421893862,1778303449000,-752.7,0.00020951,2]
[421893871,1778303449000,-199.31621758,0.00021,2]
[421893863,1778303449000,-258.0,0.00021,2]
[421893860,1778303449000,-1582.0,0.00020889,2]
[421893872,1778303449000,-9035.0,0.00021044,2]
[421893861,1778303449000,-5106.99,0.00020951,2]
[421893850,1778303449000,-800.0,0.00020601,2]
[421893856,1778303449000,-1165.46969871,0.000207,2]
[421893857,1778303449000,-200.0,0.00020812,2]
[421893854,1778303449000,-639.56,0.00020652,2]
[421893853,1778303449000,-200.0,0.00020606,2]
[421893865,1778303449000,-463.0,0.00021,2]
[421893858,1778303449000,-597.0,0.00020818,5]
[421893864,1778303449000,-165.0,0.00021,2]
[421893876,1778303449000,-1555.06,0.00021273,2]
[421893869,1778303449000,-835.0,0.00021,2]
[421893870,1778303449000,-1207.6554159,0.00021,2]
[421893867,1778303449000,-297.0,0.00021,2]
[421893868,1778303449000,-427.0,0.00021,2]
[421893874,1778303449000,-900.0,0.00021178,7]
[421893879,1778303449000,-974.52,0.000214,2]
[421893873,1778303449000,-1099.57,0.00021111,2]
[421893875,1778303449000,-173.19896806,0.00021198,16]
[421893878,1778303449000,-6455.87,0.0002137,2]
[421893881,1778303449000,-597.0,0.00021455,6]
[421893877,1778303449000,-1600.08,0.00021273,2]
[421893880,1778303449000,-900.0,0.00021452,7]
[421893848,1778303449000,-800.0,0.00020601,2]
[421893866,1778303449000,-2374.0,0.00021,2]
[421893855,1778303449000,-22932.64446491,0.000207,2]
[421893823,1778303449000,-200.0,0.000202,2]
[421893859,1778303449000,-1582.0,0.00020889,2]
[421893821,1778303449000,-644.11,0.00020137,2]
[421893882,1778303449000,-639.56,0.00021473,2]
[421893824,1778303449000,-1582.0,0.00020217,2]
[421893822,1778303449000,-597.0,0.00020182,4]
[421893830,1778303449000,-200.0,0.00020402,2]
[421893827,1778303449000,-152.0,0.0002035,5]
[421893828,1778303449000,-900.0,0.00020356,7]
[421893825,1778303449000,-152.0,0.0002035,5]
[421893829,1778303449000,-2410.0,0.00020381,2]
[421893831,1778303449000,-7291.13743585,0.00020493,2]
[421893826,1778303449000,-171.03382133,0.0002035,5]
[421893833,1778303449000,-925.0,0.00020508,2]
[421893832,1778303449000,-624.0,0.00020508,2]
[421893834,1778303449000,-1352.0,0.00020508,2]
[421893837,1778303449000,-1222.0,0.00020508,2]
[421893846,1778303449000,-800.0,0.00020601,2]
[421893836,1778303449000,-150.0,0.00020508,2]
[421893835,1778303449000,-1269.0,0.00020508,2]
[421893847,1778303449000,-800.0,0.00020601,2]
[421893838,1778303449000,-417.0,0.00020508,2]
[421893840,1778303449000,-2000.0,0.0002052,2]
[421893841,1778303449000,-2000.0,0.0002052,2]
[421893839,1778303449000,-3627.0,0.00020508,2]
[421893842,1778303449000,-2000.0,0.0002052,2]
[421893843,1778303449000,-1099.57,0.00020556,2]
[421893844,1778303449000,-800.0,0.00020601,2]
[421893845,1778303449000,-800.0,0.00020601,2]
[421893849,1778303449000,-800.0,0.00020601,2]
[421893851,1778303449000,-800.0,0.00020601,2]
[421893852,1778303449000,-442.0,0.00020601,2]
[421893883,1778303449000,-571.48,0.00021473,2]
[421893890,1778303449000,-639.56,0.00021474,2]
[421893885,1778303449000,-183.75,0.00021473,2]
[421893923,1778303449000,-700.0,0.00021837,2]
[421893924,1778303449000,-700.0,0.00021837,2]
[421893920,1778303449000,-2000.0,0.00021837,2]
[421893922,1778303449000,-700.0,0.00021837,2]
[421893925,1778303449000,-463.0,0.00021837,2]
[421893921,1778303449000,-1255.0,0.00021837,2]
[421893927,1778303449000,-206.5,0.00021906,2]
[421893937,1778303449000,-151.0,0.00021918,2]
[421893933,1778303449000,-151.0,0.00021918,2]
[421893926,1778303449000,-2100.0,0.000219,7]
[421893938,1778303449000,-151.0,0.00021918,2]
[421893939,1778303449000,-151.0,0.00021918,2]
[421893928,1778303449000,-5000.0,0.00021918,2]
[421893931,1778303449000,-151.0,0.00021918,2]
[421893929,1778303449000,-1003.15,0.00021918,2]
[421893930,1778303449000,-151.0,0.00021918,2]
[421893934,1778303449000,-151.0,0.00021918,2]
[421893936,1778303449000,-157.41529,0.00021918,2]
[421893932,1778303449000,-151.0,0.00021918,2]
[421893935,1778303449000,-151.0,0.00021918,2]
[421893940,1778303449000,-151.0,0.00021918,2]
[421893884,1778303449000,-478.87,0.00021473,2]
[421893943,1778303449000,-151.0,0.00021918,2]
[421893941,1778303449000,-151.0,0.00021918,2]
[421893945,1778303449000,-151.0,0.00021918,2]
[421893946,1778303449000,-151.0,0.00021918,2]
[421893947,1778303449000,-151.0,0.00021918,2]
[421893948,1778303449000,-242.313886,0.00021918,2]
[421893944,1778303449000,-151.0,0.00021918,2]
[421893919,1778303449000,-2000.0,0.00021837,2]
[421893914,1778303449000,-1099.57,0.00021667,2]
[421893942,1778303449000,-151.0,0.00021918,2]
[421893918,1778303449000,-2000.0,0.00021837,2]
[421893917,1778303449000,-2000.0,0.00021837,2]
[421893886,1778303449000,-183.75,0.00021473,2]
[421893888,1778303449000,-639.56,0.00021474,2]
[421893889,1778303449000,-478.87,0.00021474,2]
[421893899,1778303449000,-639.56,0.00021474,2]
[421893897,1778303449000,-639.56,0.00021474,2]
[421893896,1778303449000,-639.56,0.00021474,2]
[421893895,1778303449000,-639.56,0.00021474,2]
[421893898,1778303449000,-639.56,0.00021474,2]
[421893894,1778303449000,-643.18,0.00021474,2]
[421893892,1778303449000,-393.39,0.00021474,2]
[421893891,1778303449000,-183.75,0.00021474,2]
[421893893,1778303449000,-639.56,0.00021474,2]
[421893910,1778303449000,-639.56,0.00021474,2]
[421893887,1778303449000,-183.75,0.00021473,2]
[421893900,1778303449000,-478.87,0.00021474,2]
[421893912,1778303449000,-224.8838925,0.000215,2]
[421893915,1778303449000,-2150.8711385,0.00021694,2]
[421893913,1778303449000,-350.0,0.00021548,3]
[421893916,1778303449000,-2000.0,0.00021837,2]
[421893901,1778303449000,-639.56,0.00021474,2]
[421893905,1778303449000,-183.75,0.00021474,2]
[421893906,1778303449000,-639.56,0.00021474,2]
[421893908,1778303449000,-571.48,0.00021474,2]
[421893909,1778303449000,-639.56,0.00021474,2]
[421893904,1778303449000,-639.56,0.00021474,2]
[421893902,1778303449000,-478.91,0.00021474,2]
[421893911,1778303449000,-58256.69941008,0.000215,2]
[421893903,1778303449000,-569.23,0.00021474,2]
[421893907,1778303449000,-478.87,0.00021474,2]
[421893981,1778303450000,-350.0,0.00022237,3]
[421893980,1778303450000,-350.0,0.00022231,4]
[421893988,1778303450000,-550.0,0.00022255,2]
[421893978,1778303450000,-918720.73857855,0.0002222,2]
[421893979,1778303450000,-1099.57,0.00022222,2]
[421893971,1778303450000,-441.47986448,0.00022,2]
[421893973,1778303450000,-597.0,0.00022091,6]
[421893972,1778303450000,-450.0,0.00022,2]
[421893986,1778303450000,-550.0,0.00022255,2]
[421893987,1778303450000,-550.0,0.00022255,2]
[421893984,1778303450000,-550.0,0.00022255,2]
[421893991,1778303450000,-900.0,0.00022274,7]
[421893990,1778303450000,-350.0,0.00022255,2]
[421893982,1778303450000,-550.0,0.00022255,2]
[421893983,1778303450000,-550.0,0.00022255,2]
[421893985,1778303450000,-550.0,0.00022255,2]
[421893993,1778303450000,-639.56,0.00022295,2]
[421894004,1778303450000,-478.89,0.00022295,2]
[421893994,1778303450000,-478.87,0.00022295,2]
[421893992,1778303450000,-482.77,0.00022295,2]
[421893976,1778303450000,-353.84569884,0.00022209,7]
[421893989,1778303450000,-550.0,0.00022255,2]
[421893974,1778303450000,-400.0,0.0002217,2]
[421893954,1778303450000,-500.0,0.0002197,2]
[421893977,1778303450000,-150.00000002,0.0002222,2]
[421894003,1778303450000,-639.56,0.00022295,2]
[421893949,1778303450000,-3070.63,0.00021918,2]
[421893950,1778303450000,-153.43857549,0.00021918,2]
[421893951,1778303450000,-400.0,0.0002197,2]
[421893963,1778303450000,-463.0,0.00022,2]
[421893952,1778303450000,-689.98540987,0.0002197,2]
[421893953,1778303450000,-400.0,0.0002197,2]
[421893962,1778303450000,-165.0,0.00022,2]
[421893955,1778303450000,-500.0,0.0002197,2]
[421893956,1778303450000,-1582.0,0.00021992,2]
[421893975,1778303450000,-192.0,0.00022194,3]
[421893958,1778303450000,-165.67,0.00022,2]
[421893959,1778303450000,-158.18358786,0.00022,2]
[421893964,1778303450000,-2374.0,0.00022,2]
[421893961,1778303450000,-258.0,0.00022,2]
[421893960,1778303450000,-164948.25021646,0.00022,4]
[421893965,1778303450000,-297.0,0.00022,2]
[421893968,1778303450000,-848.71761348,0.00022,2]
[421893966,1778303450000,-427.0,0.00022,2]
[421893967,1778303450000,-835.0,0.00022,2]
[421893969,1778303450000,-239.35718974,0.00022,2]
[421893970,1778303450000,-847.67921374,0.00022,2]
[421893957,1778303450000,-101574.08793685,0.00022,4]
[421894005,1778303450000,-393.39,0.00022295,2]
[421893997,1778303450000,-571.48,0.00022295,2]
[421894032,1778303450000,-393.39,0.00022296,2]
[421894021,1778303450000,-478.87,0.00022296,2]
[421894025,1778303450000,-569.23,0.00022296,2]
[421894029,1778303450000,-183.75,0.00022296,2]
[421894027,1778303450000,-645.51,0.00022296,2]
[421894031,1778303450000,-639.56,0.00022296,2]
[421894048,1778303450000,-336.79677458,0.00022296,2]
[421894043,1778303450000,-183.75,0.00022296,2]
[421894042,1778303450000,-478.87,0.00022296,2]
[421894044,1778303450000,-639.56,0.00022296,2]
[421894036,1778303450000,-478.87,0.00022296,2]
[421894034,1778303450000,-639.56,0.00022296,2]
[421894041,1778303450000,-639.56,0.00022296,2]
[421894039,1778303450000,-571.48,0.00022296,2]
[421894035,1778303450000,-183.75,0.00022296,2]
[421894033,1778303450000,-478.9,0.00022296,2]
[421894040,1778303450000,-416.25,0.00022296,2]
[421894038,1778303450000,-393.39,0.00022296,2]
[421894037,1778303450000,-393.39,0.00022296,2]
[421894045,1778303450000,-639.36,0.00022296,2]
[421894047,1778303450000,-639.56,0.00022296,2]
[421894046,1778303450000,-478.87,0.00022296,2]
[421894023,1778303450000,-183.75,0.00022296,2]
[421894022,1778303450000,-571.48,0.00022296,2]
[421894028,1778303450000,-639.56,0.00022296,2]
[421894026,1778303450000,-478.87,0.00022296,2]
[421894000,1778303450000,-478.87,0.00022295,2]
[421893998,1778303450000,-478.87,0.00022295,2]
[421893995,1778303450000,-478.85,0.00022295,2]
[421894001,1778303450000,-183.75,0.00022295,2]
[421893996,1778303450000,-393.39,0.00022295,2]
[421894024,1778303450000,-639.56,0.00022296,2]
[421894007,1778303450000,-393.39,0.00022295,2]
[421894017,1778303450000,-393.39,0.00022295,2]
[421894018,1778303450000,-183.59,0.00022296,2]
[421894010,1778303450000,-393.39,0.00022295,2]
[421894008,1778303450000,-478.87,0.00022295,2]
[421893999,1778303450000,-183.75,0.00022295,2]
[421894013,1778303450000,-478.87,0.00022295,2]
[421894006,1778303450000,-478.87,0.00022295,2]
[421894019,1778303450000,-569.23,0.00022296,2]
[421894020,1778303450000,-478.87,0.00022296,2]
[421894030,1778303450000,-183.75,0.00022296,2]
[421894015,1778303450000,-393.39,0.00022295,2]
[421894002,1778303450000,-674.03,0.00022295,2]
[421894014,1778303450000,-571.48,0.00022295,2]
[421894016,1778303450000,-183.75,0.00022295,2]
[421894009,1778303450000,-569.23,0.00022295,2]
[421894011,1778303450000,-478.87,0.00022295,2]
[421894012,1778303450000,-395.0,0.00022295,2]
[421894049,1778303451000,-302.76322542,0.00022296,2]
[421894050,1778303451000,-206.23677458,0.00022296,2]
[421894051,1778303451000,-187.15322542,0.00022296,2]
[421894052,1778303451000,-478.87,0.00022296,2]
[421894054,1778303451000,-3872.5517825,0.00013614,2]
[421894053,1778303451000,-267.81177458,0.00022296,2]
[421894055,1778303451000,-5506.1262175,0.00014378,2]
[421894056,1778303463000,-540.8737825,0.00014378,2]
[421894057,1778303544000,-283.616324,0.00014378,2]
[421894059,1778303545000,-283.616324,0.00013432,2]
[421894058,1778303545000,-283.616324,0.00013432,2]
[421894060,1778303546000,-283.616324,0.00013432,2]
[421894061,1778303546000,-283.616324,0.00013337,2]
[421894062,1778303546000,-283.616324,0.00013337,2]
[421894063,1778303547000,-283.616324,0.00013337,2]
[421894064,1778303844000,-1337.343,0.0001307,2]
[421894065,1778303856000,-168.917,0.0001307,2]
[421894067,1778303856000,361.65,8.191e-05,2]
[421894066,1778303856000,361.65,7.781e-05,2]
[421894069,1778303856000,361.65,9.01e-05,2]
[421894068,1778303856000,361.65,8.6e-05,2]
[421894070,1778303856000,361.65,9.419e-05,2]
[421894072,1778303857000,-361.65,0.00010238,2]
[421894073,1778303857000,-361.65,0.00010648,2]
[421894071,1778303857000,361.65,9.829e-05,2]
[421894074,1778304412000,-206.90459389,0.00011057,2]
[421894077,1778304594000,-154.74540611,0.00011057,2]
[421894079,1778304594000,-361.65,0.00011467,2]
[421894080,1778304594000,-361.65,0.00011877,2]
[421894078,1778304594000,-250.0,0.00011116,2]
[421894076,1778304594000,-150.0,0.00010726,2]
[421894082,1778304594000,-150.0,0.00011942,2]
[421894081,1778304594000,-150.0,0.00011925,2]
[421894084,1778304594000,-1200.0,0.00012162,2]
[421894086,1778304594000,-4002.92985296,0.00012163,2]
[421894087,1778304594000,-361.65,0.00012286,2]
[421894088,1778304594000,-179.68,0.00012361,2]
[421894085,1778304594000,-196.68309839,0.00012163,2]
[421894089,1778304594000,-2000.0,0.0001242,2]
[421894091,1778304594000,-56.15164254,0.0001267,2]
[421894090,1778304594000,-217.96,0.00012482,2]
[421894083,1778304594000,-206.9,0.00012059,2]
[421894093,1778304606000,-334.22796898,0.0001267,2]
[421894095,1778304606000,-167.38,0.0001267,2]
[421894092,1778304606000,-123.52835746,0.0001267,2]
[421894098,1778304606000,-500.0,0.000128,4]
[421894097,1778304606000,-250.0,0.00012746,2]
[421894096,1778304606000,-361.65,0.00012696,2]
[421894099,1778304606000,-1200.0,0.00012892,2]
[421894100,1778304606000,-6813.21367356,0.00012893,2]
[421894094,1778304606000,-250.0,0.0001267,2]
[421894103,1778304627000,-179.68,0.00012979,2]
[421894101,1778304627000,-6983.36632644,0.00012893,2]
[421894102,1778304627000,-1100.0,0.000129,4]
[421894106,1778304631000,-151.0,0.00013029,2]
[421894105,1778304631000,-150.0,0.00013028,2]
[421894108,1778304631000,-151.0,0.00013029,2]
[421894107,1778304631000,-151.0,0.00013029,2]
[421894129,1778304632000,-4250.0804,0.00013237,2]
[421894125,1778304632000,-189.29895186,0.00013236,2]
[421894127,1778304632000,-618.87103305,0.00013236,2]
[421894126,1778304632000,-243.25543909,0.00013236,2]
[421894124,1778304632000,-500.0,0.00013236,2]
[421894128,1778304632000,-150.0,0.00013236,2]
[421894137,1778304632000,-361.65,0.00013515,2]
[421894130,1778304632000,-775765.33509322,0.00013237,2]
[421894133,1778304632000,-921.8019165,0.00013276,2]
[421894132,1778304632000,-1123.87706072,0.00013276,2]
[421894135,1778304632000,-179.68,0.00013288,2]
[421894134,1778304632000,-3719.28183951,0.00013278,2]
[421894136,1778304632000,-190.88381173,0.00013327,2]
[421894131,1778304632000,-649.66690678,0.00013237,2]
[421894118,1778304632000,-216.51352464,0.00013175,2]
[421894164,1778304632000,-500.0,0.00013698,2]
[421894120,1778304632000,-157.13030974,0.00013236,2]
[421894114,1778304632000,-151.0,0.00013029,2]
[421894113,1778304632000,-151.0,0.00013029,2]
[421894117,1778304632000,-361.65,0.00013105,2]
[421894116,1778304632000,-2080.17592889,0.00013029,2]
[421894115,1778304632000,-154.11357619,0.00013029,2]
[421894123,1778304632000,-500.0,0.00013236,2]
[421894122,1778304632000,-500.0,0.00013236,2]
[421894121,1778304632000,-500.0,0.00013236,2]
[421894112,1778304632000,-151.0,0.00013029,2]
[421894109,1778304632000,-151.0,0.00013029,2]
[421894110,1778304632000,-151.0,0.00013029,2]
[421894111,1778304632000,-151.0,0.00013029,2]
[421894138,1778304632000,-1248.03853777,0.00013561,2]
[421894119,1778304632000,-487.19344223,0.00013236,2]
[421894142,1778304632000,-179.68,0.00013597,2]
[421894174,1778304632000,-8858.38136427,0.00013699,2]
[421894146,1778304632000,-500.0,0.00013698,2]
[421894145,1778304632000,-500.0,0.00013698,2]
[421894172,1778304632000,-4906.72,0.00013699,2]
[421894173,1778304632000,-166.97,0.00013699,2]
[421894171,1778304632000,-892.82,0.00013699,2]
[421894165,1778304632000,-504.57611816,0.00013698,2]
[421894170,1778304632000,-178.56,0.00013699,2]
[421894169,1778304632000,-214.27,0.00013699,2]
[421894168,1778304632000,-257.13,0.00013699,2]
[421894167,1778304632000,-308.55,0.00013699,2]
[421894162,1778304632000,-154.05330087,0.00013698,2]
[421894163,1778304632000,-500.0,0.00013698,2]
[421894160,1778304632000,-500.0,0.00013698,2]
[421894156,1778304632000,-500.0,0.00013698,2]
[421894159,1778304632000,-500.0,0.00013698,2]
[421894155,1778304632000,-500.0,0.00013698,2]
[421894166,1778304632000,-2500.0,0.00013699,2]
[421894153,1778304632000,-500.0,0.00013698,2]
[421894141,1778304632000,-160.0,0.00013583,2]
[421894151,1778304632000,-500.0,0.00013698,2]
[421894144,1778304632000,-208.0536425,0.00013599,2]
[421894143,1778304632000,-214.73073128,0.00013599,2]
[421894139,1778304632000,-1407.26333864,0.00013577,2]
[421894147,1778304632000,-500.0,0.00013698,2]
[421894148,1778304632000,-500.0,0.00013698,2]
[421894140,1778304632000,-749.87909962,0.00013577,2]
[421894152,1778304632000,-500.0,0.00013698,2]
[421894154,1778304632000,-505.3722046,0.00013698,2]
[421894157,1778304632000,-500.0,0.00013698,2]
[421894158,1778304632000,-500.0,0.00013698,2]
[421894150,1778304632000,-500.0,0.00013698,2]
[421894161,1778304632000,-500.0,0.00013698,2]
[421894317,1778304649000,-5000.01,0.00013699,2]
[421894327,1778304660000,-250.0,0.00013937,2]
[421894323,1778304660000,-300.0,0.00013937,2]
[421894325,1778304660000,-309.9069874,0.00013937,2]
[421894324,1778304660000,-300.0,0.00013937,2]
[421894326,1778304660000,-193.0,0.00013937,2]
[421894322,1778304660000,-300.0,0.00013937,2]
[421894320,1778304660000,-361.65,0.00013924,2]
[421894319,1778304660000,-836.04,0.00013699,2]
[421894318,1778304660000,-8871.07863573,0.00013699,2]
[421894329,1778304660000,-470.09,0.00013986,2]
[421894321,1778304660000,-150.12298474,0.00013937,2]
[421894328,1778304660000,-2000.0,0.00013973,2]
[421894335,1778304660000,-1489.41554237,0.00014125,2]
[421894331,1778304660000,-166.97,0.00014041,2]
[421894330,1778304660000,-12231.72675233,0.0001399,2]
[421894342,1778304660000,-150.0,0.00014928,2]
[421894341,1778304660000,-361.65,0.00014743,2]
[421894339,1778304660000,-1582.0,0.0001436,2]
[421894338,1778304660000,-361.65,0.00014334,2]
[421894340,1778304660000,-166.97,0.00014384,2]
[421894332,1778304660000,-151.0,0.00014104,2]
[421894334,1778304660000,-380.52932165,0.00014125,2]
[421894337,1778304660000,-1680.0,0.00014181,2]
[421894333,1778304660000,-210.23106487,0.00014125,2]
[421894336,1778304660000,-255.0,0.00014135,2]
[421894371,1778304661000,-500.0,0.0001709,2]
[421894364,1778304661000,-921.8019165,0.00016846,2]
[421894367,1778304661000,-330.0,0.00017082,5]
[421894363,1778304661000,-565.0,0.00016816,2]
[421894369,1778304661000,-500.0,0.0001709,2]
[421894366,1778304661000,-2000.0,0.00017078,2]
[421894368,1778304661000,-259.0,0.00017082,5]
[421894375,1778304661000,-150.0,0.00017104,2]
[421894370,1778304661000,-500.0,0.0001709,2]
[421894372,1778304661000,-500.0,0.0001709,2]
[421894373,1778304661000,-500.0,0.0001709,2]
[421894374,1778304661000,-646.0,0.0001709,2]
[421894376,1778304661000,-150.0,0.00017186,2]
[421894377,1778304661000,-150.0,0.00017186,2]
[421894362,1778304661000,-500.0,0.00016816,2]
[421894365,1778304661000,-1123.87706065,0.0001697,2]
[421894361,1778304661000,-500.0,0.00016816,2]
[421894379,1778304661000,-150.0,0.00017186,2]
[421894360,1778304661000,-500.0,0.00016816,2]
[421894344,1778304661000,-171.0,0.00015,2]
[421894343,1778304661000,-150.0,0.00014928,2]
[421894345,1778304661000,-3627.0,0.00015027,2]
[421894348,1778304661000,-1269.0,0.00015238,2]
[421894347,1778304661000,-361.65,0.00015153,2]
[421894350,1778304661000,-2000.0,0.00015525,2]
[421894349,1778304661000,-1222.0,0.00015238,2]
[421894357,1778304661000,-746.0,0.00016542,2]
[421894346,1778304661000,-1123.87706065,0.00015123,2]
[421894352,1778304661000,-2351.0,0.00015599,2]
[421894353,1778304661000,-3719.2818395,0.00015653,2]
[421894354,1778304661000,-200.0,0.00015783,2]
[421894359,1778304661000,-500.0,0.00016816,2]
[421894358,1778304661000,-204.16,0.00016712,2]
[421894356,1778304661000,-1807.5,0.00016438,2]
[421894355,1778304661000,-8165.83,0.00016116,2]
[421894351,1778304661000,-361.65,0.00015562,2]
[421894380,1778304661000,-150.0,0.00017333,2]
[421894396,1778304661000,-150.0,0.00017921,2]
[421894381,1778304661000,-500.0,0.00017364,2]
[421894407,1778304661000,-1269.0,0.00018238,2]
[421894404,1778304661000,-500.0,0.00018186,2]
[421894406,1778304661000,-150.0,0.00018215,2]
[421894405,1778304661000,-214.67043008,0.000182,2]
[421894401,1778304661000,-500.0,0.00018186,2]
[421894409,1778304661000,-200.0,0.00018285,2]
[421894408,1778304661000,-1222.0,0.00018238,2]
[421894410,1778304661000,-1582.0,0.00018349,2]
[421894411,1778304661000,-150.0,0.00018361,2]
[421894414,1778304661000,-1069.875,0.0001841,2]
[421894413,1778304661000,-1807.5,0.0001841,2]
[421894415,1778304661000,-168.917,0.0001841,2]
[421894412,1778304661000,-214.67043008,0.000184,2]
[421894416,1778304661000,-214.67043008,0.000185,2]
[421894378,1778304661000,-150.0,0.00017186,2]
[421894402,1778304661000,-500.0,0.00018186,2]
[421894400,1778304661000,-150.0,0.00018068,2]
[421894403,1778304661000,-500.0,0.00018186,2]